[Event "Portuguese Rapid-ch 2022"]
[Site "Viseu"]
[Date "2022.06.10"]
[Round "1.2"]
[White "Lopes, Jose Eduardo Santos "]
[Black "Sousa, Andre Ventura"]
[Result "0-1"]
[ECO "B12"]
[WhiteElo "1652"]
[BlackElo "2420"]
[Annotator "TA"]
[PlyCount "114"]
[EventDate "2022.06.09"]
[EventType "rapid"]
[EventCountry "POR"]
[SourceTitle "playchess.com"]
[Source "ChessBase"]
[SourceQuality "1"]
[TimeControl "600+5"]

{[%evp 9,114,8,0,0,21,16,11,15,14,3,12,-7,-7,-14,0,0,55,5,9,5,19,0,0,-68,79,83,89,84,85,50,75,18,44,45,36,35,35,58,111,-1,-8,-5,0,0,87,-54,-52,-114,-117,-115,-104,-508,-505,-449,-474,-484,-468,-477,-471,-459,-463,-404,-391,-368,-480,-475,-475,-470,-404,-818,-795,-801,-776,-988,-988,-1308,-1308,-1300,-1237,-1550,-1525,-5716,-1017,-1014,-1014,-992,-985,-909,-891,-1461,-1360,-1604,-1426,-1272,-1215,-29967,-29969,-29963,-29964,-29975,-1191,-29978,-29980,-29980,-29980,-29982,-29980]} 1. e4 c6 2. d4 d5 3. e5 Bf5 4. h4 h5 5. Bd3 Bxd3 6. Qxd3 {[%cal Oe5e6] B12: Caro-Kann: Advance Variation.} Qa5+ 7. Nd2 {[%cal Oe5e6]} e6 8. Ngf3 {The position is equal.} Nh6 9. O-O Nf5 10. a4 {10.Nb3 is becoming the main line.} Qa6 11. c4 Bb4 {Prevents Qc3.} 12. b3 {[#]} Qa5 $146 ({Black should try} 12... c5 $11) ({Predecessor:} 12... c5 13. Qb1 Nxd4 14. Nxd4 cxd4 15. cxd5 exd5 16. Nf3 Qg6 17. Qxg6 fxg6 18. Bb2 Nc6 19. Nxd4 Nxd4 20. Bxd4 {½-½ (45) Praggnanandhaa,R (2612)-Keymer,V (2664) chess24.com INT 2022}) 13. g3 (13. Rd1 $14) 13... Na6 $11 14. Rd1 Rd8 15. Nf1 dxc4 16. bxc4 {[#]} (16. Qxc4 $11 O-O 17. Bg5) 16... Bc3 (16... Nxd4 $1 $15 {stays ahead.} 17. Nxd4 c5) 17. Bd2 $16 Bxd2 18. Rxd2 O-O 19. Qb3 Qb4 20. Rb1 (20. Qc2 $1 $16) 20... Qxb3 21. Rxb3 Rd7 22. Ne3 Nxe3 23. fxe3 Rfd8 (23... c5 $14) 24. Ng5 (24. Rdb2 $1 $16) 24... Nc5 $11 25. Rb4 a5 26. Rb1 Nxa4 (26... f6 $11 27. Nf3 Nxa4) 27. Rb3 ({Better is} 27. Ne4 $16 {Strongly threatening Ra2.} b5 28. Ra2 (28. cxb5 Rb7 $11)) 27... Nc5 $1 $15 28. Rb1 (28. Ra3 $15) 28... f6 $1 $36 {[%mdl 2048] White is under strong pressure.} 29. Nf3 Ne4 {[%csl LRd2,LRg3]} 30. Ra2 {[%mdl 8192] White does not recover from this.} (30. Rc2 $17 {is tougher.}) 30... Nc3 $19 31. Rba1 Nxa2 32. Rxa2 {[%mdl 4096] Endgame KRR-KRN} b6 33. Kf2 Kf7 34. c5 Rb7 35. cxb6 Ra8 36. exf6 gxf6 37. Nd2 Rxb6 38. Nc4 Rb4 39. Nb2 (39. Rxa5 $142 Rxa5 40. Nxa5) 39... a4 40. Nd3 Rb5 41. Nc5 a3 42. Nd3 {Against Rb2+} Rb3 43. Ke2 Rg8 44. Rc2 Rxg3 {( -> ...Rg2+)} 45. Rxc6 {[#]} a2 (45... Rb2+ $142 $1 46. Nxb2 axb2 47. Rc7+ Kg6) 46. Ra6 Rg2+ 47. Kf3 Rd2 ({But not} 47... Rxd3 $2 48. Ra7+ Ke8 49. Kxg2 $19) 48. Ra7+ Kf8 49. Nf4 Rb1 50. Nxe6+ Ke8 51. Ng7+ {[#]} Kd8 $1 52. Nxh5 a1=Q 53. Rxa1 Rxa1 54. Ng7 Rh2 (54... Kd7 $142 55. Nh5 Rf1+ 56. Ke4 Rh2 57. Nf4 Rxh4 58. Kf5 Rh3 59. Kg6 Rxe3 60. Nd5 Rg3+ 61. Kf7 Kd6 62. Nb6 f5 63. Nc8+ Kd5 64. Kf6 Kxd4 65. Nd6 f4 66. Nb5+ Ke4 67. Nd6+ Kd5 68. Ne8 Re1 69. Nc7+ Ke4 70. Ne8 f3 71. Nd6+ Kd5 72. Nf5 Rgg1 73. Ne7+ {[#]} Rxe7 $1 {[%mdl 512]} 74. Kxe7 f2 75. Kd7 Rg7+ 76. Kd8 f1=Q 77. Ke8 Qf7+ 78. Kd8 Rg8#) 55. Nf5 Rf1+ {Black mates.} 56. Ke4 Kd7 57. d5 Rh3 {Weighted Error Value: White=0.78/Black=0.17 (very precise)} 0-1

[Event "Portuguese Rapid-ch 2022"]
[Site "Viseu"]
[Date "2022.06.10"]
[Round "1.3"]
[White "Veiga, Jose Francisco R P N"]
[Black "Almeida, Joao Pedro Dias"]
[Result "1-0"]
[ECO "C65"]
[WhiteElo "2377"]
[BlackElo "1603"]
[Annotator "TA"]
[PlyCount "87"]
[EventDate "2022.06.09"]
[EventType "rapid"]
[EventCountry "POR"]
[SourceTitle "playchess.com"]
[Source "ChessBase"]
[SourceQuality "1"]
[TimeControl "600+5"]

{[%evp 17,87,26,26,31,33,31,42,25,34,34,52,20,57,44,60,25,60,20,70,0,0,0,0,-21,0,0,2,2,1,10,79,86,93,90,121,129,98,94,251,109,111,123,139,117,166,144,144,85,90,67,235,221,253,262,310,243,357,289,401,337,357,350,299,278,848,762,721,678,1106,463,1428,1210]} 1. e4 {[%emt 0:00:02]} e5 {[%emt 0:00:01]} 2. Nf3 {[%emt 0:00:02]} Nc6 {[%emt 0:00:03]} 3. Bb5 {[%emt 0:00:03]} Nf6 {[%emt 0:00:02]} 4. d3 {[%emt 0:00:05]} d6 {[%emt 0:00:02]} 5. O-O {[%emt 0:00:03]} Be7 {[%emt 0:00:03]} 6. c3 {[%emt 0:00:02]} O-O {[%emt 0:00:09]} 7. Nbd2 {[%emt 0:00:01]} a6 {[%emt 0:00:32]} 8. Ba4 {[%emt 0:00:02]} b5 {[%emt 0:00:07]} 9. Bc2 {[%emt 0:00:02]} d5 {[%emt 0:00:25] 9...d5 scores better than 9...Re8.} 10. Re1 $1 {[%emt 0:00:12] C77: Ruy Lopez: 3...a6 4 Ba4 Nf6, unusual lines.} dxe4 {[%emt 0:00:43]} 11. dxe4 {[%emt 0:00:05]} Bc5 {[%emt 0:00:36]} 12. h3 {[%emt 0:00:14] White is slightly better.} h6 {[%emt 0:00:20]} 13. Qe2 {[%emt 0:00:02] [#]} Qe7 $146 {[%emt 0:00:10]} ({Predecessor:} 13... Re8 14. b4 Ba7 15. a4 Nh5 16. axb5 Nf4 17. Qc4 axb5 18. Qxc6 Bd7 19. Qb7 Bxf2+ 20. Kxf2 Rxa1 {1-0 (51) Coenen,N (2243)-Koch,F (1941) Nordrheinwestfalen 2015}) 14. Nf1 {[%emt 0:00:15]} (14. b4 $5 {[%cal Rb4c5]} Bd6 15. a4 $14) 14... Rd8 {[%emt 0:01:18]} 15. Ng3 {[%emt 0:00:09]} b4 {[%emt 0:00:40]} 16. Nh4 {[%emt 0:00:13]} (16. Ba4 $5 {[%cal Ra4c6]} Bd7 17. Nf5 $14) 16... Qe8 {[%emt 0:00:37]} 17. Nhf5 {[%emt 0:00:46] Hoping for Qf3.} Ne7 {[%emt 0:00:23]} ({Black should play} 17... bxc3 $11 18. bxc3 Ne7) 18. Qf3 {[%emt 0:00:09]} (18. Be3 $14 Nxf5 19. exf5 (19. Bxc5 Nxg3 20. fxg3 bxc3 $11)) 18... Nxf5 $1 $11 {[%emt 0:00:03]} 19. Nxf5 {[%emt 0:00:04]} Bxf5 {[%emt 0:00:05]} 20. Qxf5 {[%emt 0:00:05][%cal Oc1h6]} Rd6 {[%emt 0:00:36]} 21. cxb4 {[%emt 0:01:00]} Bxb4 {[%emt 0:00:12]} 22. Rd1 {[%emt 0:00:02]} Rad8 {[%emt 0:00:21]} 23. Be3 {[%emt 0:00:08]} Qc6 {[%emt 0:00:40]} (23... g6 $11 24. Qf3 Qc6) 24. Rxd6 $16 {[%emt 0:00:30]} Rxd6 {[%emt 0:00:13]} 25. Bb3 {[%emt 0:00:30]} Qxe4 {[%emt 0:00:13]} 26. Qc8+ {[%emt 0:00:03]} Kh7 {[%emt 0:00:06]} 27. Bxf7 {[%emt 0:00:03] Be6 is the strong threat.} Qc2 $2 {[%emt 0:00:42] [#]} (27... Bd2 $16 {keeps fighting.} 28. Bc5 (28. Qxc7 Rd7 $11) 28... Rc6) 28. Rc1 {[%emt 0:01:37]} (28. Bb3 $1 $18 {[%cal Rb3c2] is the precise move to win.} Qc6 29. Qf5+ Kh8 30. Rc1 (30. Qxe5 Qe4 $18)) 28... Rd1+ {[%emt 0:00:00]} 29. Rxd1 {[%emt 0:00:01] Chess con chili.} Qxd1+ {[%emt 0:00:01]} 30. Kh2 {[%emt 0:00:02] White is more active.} Qc2 {[%emt 0:00:19] Inhibits Qf5+.} (30... Qd6 $16 31. Qf5+ (31. a3 Bd2 $16) 31... Kh8) 31. Be6 $36 {[%emt 0:00:14][%mdl 2048] aiming for Bf5+. Keeping Black busy.} Qc6 {[%emt 0:00:37]} 32. Bf5+ {[%emt 0:00:41] A strong pair of Bishops.} ({Better is} 32. a3 Bc5 33. Bf5+ g6 34. Bxc5 Qxc5 35. Qe6 (35. Qxa6 Qxf2 36. Qxf6 Qf4+ 37. Kg1 Qc1+ 38. Kf2 Qf4+ 39. Ke2 gxf5 $11)) 32... g6 {[%emt 0:00:01]} 33. Bd3 {[%emt 0:00:02]} Bd6 $2 {[#]} (33... a5 $1 $14) 34. Qxa6 $18 e4+ {[%emt 0:01:40]} 35. g3 {[%emt 0:00:09]} Qd5 {[%emt 0:00:18]} 36. Be2 {[%emt 0:00:30]} Be5 {[%emt 0:00:06]} (36... h5 {might work better.} 37. Qc4 h4) 37. Bc4 {[%emt 0:00:14]} Qd7 {[%emt 0:00:15]} 38. b3 {[%emt 0:00:17]} Nd5 {[%emt 0:00:05]} 39. Bxd5 {[%emt 0:00:19]} Qxd5 {[%emt 0:00:01]} 40. Qc4 {[%emt 0:00:02]} Qd1 {[%emt 0:00:19]} (40... Qxc4 41. bxc4 Bc3) 41. Qxe4 {[%emt 0:00:11] White is clearly winning.} Qa1 {[%emt 0:00:06]} 42. a4 {[%emt 0:00:12]} Qc3 {[%emt 0:00:03]} 43. Qc4 {[%emt 0:00:14]} (43. b4 $142) 43... Qa5 {[%emt 0:00:01]} (43... Qxc4 $142 44. bxc4 Bc3) 44. Qf7+ {Weighted Error Value: White=0.34/Black=0.45} 1-0

[Event "Portuguese Rapid-ch 2022"]
[Site "Viseu"]
[Date "2022.06.10"]
[Round "1.5"]
[White "Santos, Jose Guilherme B Lim"]
[Black "Bras, Hugo Miguel Pereira"]
[Result "1-0"]
[ECO "E08"]
[WhiteElo "2365"]
[BlackElo "1518"]
[Annotator "TA"]
[PlyCount "79"]
[EventDate "2022.06.09"]
[EventType "rapid"]
[EventCountry "POR"]
[SourceTitle "playchess.com"]
[Source "ChessBase"]
[SourceQuality "1"]
[TimeControl "600+5"]

{[%evp 13,79,11,54,0,36,29,20,29,62,0,52,48,58,38,42,37,126,104,181,186,228,216,222,223,212,190,203,186,192,200,177,185,235,205,262,260,278,237,244,244,244,244,258,258,258,255,515,501,656,644,785,744,1019,1004,1998,933,1997,1961,1734,1254,1871,1148,2281,2447,6303,6275,1827,1719]} 1. d4 d5 2. c4 e6 3. Nf3 Nf6 4. g3 Be7 5. Bg2 Nbd7 6. O-O O-O 7. Qc2 b6 8. Ne5 {E08: Closed Catalan: Main Line: 7 Qc2.} ({White should play} 8. cxd5 $14 Nxd5 9. Nc3) 8... Bb7 9. cxd5 $1 Nxd5 10. Nc6 {The position is equal.} Qe8 {[#]} 11. e4 $146 (11. a3 $14) ({Predecessor:} 11. Bxd5 exd5 12. Nxe7+ Qxe7 13. Qxc7 Ba6 14. Nc3 Rfc8 15. Qf4 Nf6 16. Qf3 Qe6 17. Be3 {0-1 (31) Montanes Arribas,A (2173)-Longa Yauca,J (2232) Madrid 2015}) 11... Nb4 ({Better is} 11... Bxc6 $11 12. Qxc6 Nb4) 12. Nxb4 $1 $14 Bxb4 13. Bf4 Rc8 14. Nc3 c5 {White now steadily converts the win.} (14... e5 $14 15. dxe5 Nxe5) 15. d5 {White is more active.} Nf6 (15... Ba6 $16 {might work better.}) 16. Bd6 $18 Bxc3 17. bxc3 ({Resist} 17. Qxc3 $6 exd5 18. exd5 (18. Bxf8 d4 $11) 18... Ne4 19. Bxe4 Qxe4 20. Bxf8 Rxf8 $16) ({But not} 17. Bxf8 $2 Be5 18. Bxc5 bxc5 $19) 17... exd5 18. Bxf8 Qxf8 19. exd5 Bxd5 20. Bxd5 Nxd5 21. Rad1 Nf6 22. Rfe1 Rb8 (22... Rc6 {is a better defense.} 23. Qa4 Rc7) 23. Qf5 c4 24. Rd4 b5 25. Qe5 Re8 26. Qxe8 Nxe8 27. Rd8 Nf6 28. Rxf8+ Kxf8 {[%mdl 4096] Endgame KR-KN} 29. Re5 {Inhibits Nd5.} b4 (29... a6 30. a4 Nd7) 30. cxb4 {White is clearly winning.} c3 31. Rc5 Ne4 32. Rc4 c2 33. Rxc2 {[#] Strongly threatening b5.} Nd6 34. a4 Ke8 35. Rc7 a6 36. Rc6 Kd7 37. Rxa6 Kc7 38. b5 g6 39. Rc6+ Kd7 {[#]} 40. Rxd6+ $1 {Weighted Error Value: White=0.11 (very precise) /Black=0.60} 1-0

[Event "Portuguese Rapid-ch 2022"]
[Site "Viseu"]
[Date "2022.06.10"]
[Round "1.6"]
[White "Mercadante, Ricardo Rodrigues"]
[Black "Padeiro, Jose"]
[Result "0-1"]
[ECO "B00"]
[WhiteElo "2261"]
[BlackElo "2207"]
[Annotator "TA"]
[PlyCount "80"]
[EventDate "2022.06.09"]
[EventType "rapid"]
[EventCountry "POR"]
[SourceTitle "playchess.com"]
[Source "ChessBase"]
[SourceQuality "1"]
[TimeControl "600+5"]

{[%evp 10,80,83,27,63,39,37,22,47,43,38,0,0,0,0,-91,-88,-100,-93,-111,-109,-112,-112,-110,-113,-125,-118,-123,-124,-137,-137,-143,-150,-177,-140,-206,-199,-236,-202,-272,-271,-342,-344,-362,-364,-496,-479,-713,-710,-699,-673,-914,-901,-736,-614,-864,-845,-1506,-1482,-1305,-1236,-2740,-2648,-6203,-6030,-29971,-29972,-29982,-29983,-29990,-29991,-29991,-29992]} 1. e4 Nc6 2. Nf3 d6 3. d4 Nf6 4. Nc3 Bg4 5. Be3 e6 6. Be2 (6. h3 $16 Bxf3 7. Qxf3) 6... a6 {Recently 6...d5 got a lot of attention. B00: Queen's Fianchetto Defence, Nimzowitsch Defence.} 7. a3 {[#]} d5 $146 ({Predecessor:} 7... Be7 8. h3 Bxf3 9. Bxf3 d5 10. exd5 Nxd5 11. Nxd5 exd5 12. O-O O-O 13. Qd3 Qd7 {½-½ (40) Cumming,R (2010)-Thomas,R (2197) England 2011}) 8. e5 Ne4 {The position is equal.} 9. Nxe4 dxe4 10. Ng5 (10. Ng1 $5 {[%cal Re2g4]} Bf5 11. c3 $14) 10... Bxe2 11. Qxe2 Nxd4 12. Qd2 (12. Qc4 $11 {keeps the balance.} c5 13. Nxe4) 12... Nc6 $17 {[%cal Bd4c6,Bc6e5,Be5c4][%mdl 32]} 13. O-O-O Qxd2+ 14. Rxd2 Nxe5 15. Nxe4 Nc4 16. Rd3 Nxe3 17. fxe3 Be7 18. Rhd1 f5 19. Nc3 Rd8 {Prevents Rd7.} 20. Rxd8+ Bxd8 {[%mdl 4096] Endgame KRB-KRN} 21. e4 Bf6 22. Ne2 (22. Na4 $17) 22... fxe4 $19 23. Kb1 Ke7 24. Re1 Rd8 25. Nf4 g5 26. Nh5 Rd2 27. g3 Rxh2 28. Nxf6 (28. g4 $142 Be5 29. Rxe4) 28... Kxf6 29. Rxe4 {KR-KR} h5 30. b4 Rg2 31. Re3 g4 32. a4 Rf2 33. c4 Rf3 34. Re1 Rxg3 {[#] White must now prevent ...h4.} 35. b5 axb5 36. cxb5 h4 {[%cal Bh5h4,Bh4h3,Bh3h2][%mdl 32] ( -> ...h3)} 37. Kb2 b6 {Black mates.} 38. Rc1 h3 39. Rxc7 h2 40. Rh7 Rh3 {Black took control after the opening.  Weighted Error Value: White=0.92/Black=0.10 (very precise)} 0-1

[Event "Portuguese Rapid-ch 2022"]
[Site "Viseu"]
[Date "2022.06.10"]
[Round "1.7"]
[White "Martins, Bruno Andre Leite"]
[Black "Albuquerque, Eduardo Ferreira"]
[Result "1-0"]
[ECO "A45"]
[WhiteElo "2327"]
[BlackElo "1828"]
[Annotator "TA"]
[PlyCount "39"]
[EventDate "2022.06.09"]
[EventType "rapid"]
[EventCountry "POR"]
[SourceTitle "playchess.com"]
[Source "ChessBase"]
[SourceQuality "1"]
[TimeControl "600+5"]

{[%evp 9,39,40,58,6,66,65,65,79,254,246,278,310,448,373,389,239,239,204,418,242,610,581,602,599,1184,1160,1356,1249,1216,1215,1104,1085]} 1. d4 {[%emt 0:00:02]} Nf6 {[%emt 0:00:01]} 2. Bf4 {[%emt 0:00:02]} g6 {[%emt 0:00:05]} 3. Nc3 {[%emt 0:00:01]} Bg7 {[%emt 0:00:03]} 4. e4 {[%emt 0:00:01][%cal Be2e4,Be4e5][%mdl 32]} d6 {[%emt 0:00:04]} 5. Qd2 {[%emt 0:00:02]} O-O 6. f3 {B07: Pirc Defence: Miscellaneous Systems.} (6. O-O-O $14) 6... Re8 {[%emt 0:00:45]} (6... c5 $11) 7. O-O-O $14 {[%emt 0:00:10]} Nbd7 {[%emt 0:00:13]} 8. g4 {[%emt 0:00:42] [#] Threatens to win with e5. White is more active. White is slightly better.} h5 $146 {[%emt 0:00:39] [#]} (8... e5 $16 {was worth a try.}) ({Predecessor:} 8... c5 9. dxc5 Nxc5 10. e5 Nfd7 11. exd6 exd6 12. h4 Qa5 13. h5 Bxc3 14. Qxc3 Qxc3 15. bxc3 {1-0 (42) Trottier,L-Fuller,T (1824) ICCF email 2018}) 9. e5 $18 {[%emt 0:00:40]} Nh7 {[%emt 0:00:42]} 10. gxh5 {[%emt 0:00:07]} gxh5 {[%emt 0:00:01]} (10... Ndf8 {might work better.} 11. Bd3 (11. h6 Bh8 $16) 11... c5) 11. Nh3 {[%emt 0:00:56][%cal Bg1h3,Bh3f4,Bf4h5][%mdl 32]} Ndf8 {[%emt 0:00:54]} 12. Qe3 {[%emt 0:02:04] Strongly threatening Bh6.} Ng6 {[%emt 0:00:36]} 13. Rg1 {[%emt 0:01:17]} Bf5 $2 {[%emt 0:00:32]} (13... Bxh3 14. Bxh3 e6) 14. Bh6 {[%emt 0:00:23]} (14. e6 $142) 14... Qd7 $2 {[%emt 0:00:19]} (14... e6 15. Bxg7 Kxg7) 15. Bxg7 {[%emt 0:00:19] White is clearly winning.} Kxg7 {[%emt 0:00:46]} 16. Nf4 {[%emt 0:00:03]} h4 {[%emt 0:00:20]} 17. e6 {[%emt 0:00:46]} Qc8 {[%emt 0:01:17]} 18. Nh5+ {[%emt 0:00:19]} Kh8 {[%emt 0:00:28]} 19. Qh6 {[%emt 0:00:02][%csl Gh5][%cal Rh6g7] [#]} Rg8 {[%emt 0:00:19] Inhibits Qg7+.} 20. exf7 {[%emt 0:00:03] White took control after the opening.  Weighted Error Value: White=0.43/Black=0.92} 1-0

[Event "Portuguese Rapid-ch 2022"]
[Site "Viseu"]
[Date "2022.06.10"]
[Round "1.8"]
[White "Valente, Sofia"]
[Black "Ferreira, Luis Pedro"]
[Result "0-1"]
[ECO "E21"]
[WhiteElo "1427"]
[BlackElo "2183"]
[Annotator "TA"]
[PlyCount "95"]
[EventDate "2022.06.09"]
[EventType "rapid"]
[EventCountry "POR"]
[SourceTitle "playchess.com"]
[Source "ChessBase"]
[SourceQuality "1"]
[TimeControl "600+5"]

{[%evp 12,95,1,-16,-2,-41,-23,-30,-10,-7,0,-14,21,8,16,0,13,-7,-7,-8,0,-105,-64,-57,-72,-66,-56,-121,-117,-123,-129,-185,-140,-137,-137,-139,-139,-220,-218,-212,-127,-138,-122,-124,-117,-132,-111,-200,-220,-212,-203,-260,-245,-287,-277,-256,-259,-266,-132,-131,-119,-154,-180,-293,-276,-270,-252,-283,-284,-274,-257,-381,-385,-710,-690,-780,-807,-886,-850,-1349,-1243,-1477,-1008,-1728,-903,-7308]} 1. d4 {[%emt 0:00:03]} Nf6 {[%emt 0:00:01]} 2. c4 {[%emt 0:00:01]} e6 {[%emt 0:00:02]} 3. Nc3 {[%emt 0:00:03]} Bb4 {[%emt 0:00:01]} 4. Nf3 {[%emt 0:00:10]} b6 {[%emt 0:00:02]} 5. a3 {[%emt 0:00:15]} Bxc3+ {[%emt 0:00:02]} 6. bxc3 {[%emt 0:00:03]} O-O {[%emt 0:00:05]} 7. Qc2 {[%emt 0:00:03]} Bb7 {[%emt 0:00:04] Prevents e4. E27: Nimzo-Indian: Sämisch: 5...0-0 6 f3.} 8. e3 {[%emt 0:00:19]} Be4 {[%emt 0:00:06]} 9. Bd3 {[%emt 0:00:12] [#]} Bxd3 $146 {[%emt 0:00:01] Black has an edge.} (9... Bxf3 $5 10. gxf3 Nc6 $11) ({Predecessor:} 9... d5 10. Bxe4 Nxe4 11. O-O Nd7 12. cxd5 exd5 13. c4 c6 14. Nd2 Ndf6 15. f3 Nxd2 16. Bxd2 {0-1 (42) Mamedjarova,T (2295)-Shafigullina,Z (2140) St Petersburg 2018}) 10. Qxd3 {[%emt 0:00:04]} d6 {[%emt 0:00:02][%cal Oe6e5]} 11. O-O {[%emt 0:00:33]} Nbd7 {[%emt 0:00:07]} 12. e4 {[%emt 0:00:28]} e5 {[%emt 0:00:15]} 13. Bg5 {[%emt 0:00:30]} h6 {[%emt 0:00:05]} 14. Bh4 {[%emt 0:00:02]} Re8 {[%emt 0:00:09]} 15. Rfe1 {[%emt 0:00:16]} Qe7 {[%emt 0:00:13]} 16. dxe5 {[%emt 0:00:37]} (16. Nd2 $11 {remains equal.}) 16... Nxe5 {[%emt 0:00:25]} 17. Nxe5 {[%emt 0:00:28]} Qxe5 {[%emt 0:00:05]} 18. f3 {[%emt 0:00:20]} Nd7 {[%emt 0:00:05][%cal Bf6d7,Bd7e5,Be5c4][%mdl 32]} 19. Rac1 {[%emt 0:00:14]} (19. Bg3 $15 Qa5 20. Reb1) 19... Qc5+ {[%emt 0:00:09]} 20. Bf2 {[%emt 0:00:22]} Ne5 {[%emt 0:00:17]} 21. Qe2 {[%emt 0:00:59]} (21. Qc2 $17 Qc6 22. a4) 21... Qxc4 {[%emt 0:00:04]} 22. Qxc4 {[%emt 0:00:14]} Nxc4 {[%emt 0:00:01]} 23. a4 {[%emt 0:00:23]} Re5 {[%emt 0:00:21]} 24. Re2 {[%emt 0:00:21]} (24. Rb1 $17 {was necessary.}) 24... f5 $19 {[%emt 0:00:22]} 25. Bg3 {[%emt 0:00:33]} Ra5 {[%emt 0:00:11]} (25... Re6 $19 26. Rd1 Rae8) 26. exf5 $17 {[%emt 0:00:07]} Rxf5 {[%emt 0:00:23]} 27. Re7 {[%emt 0:00:23]} Rf7 {[%emt 0:00:06]} 28. Rce1 {[%emt 0:00:14]} a5 {[%emt 0:00:10][%cal Ob6b5]} 29. Bh4 {[%emt 0:00:35]} (29. R7e4 $17 Nd2 30. R4e2) 29... Ne5 $19 {[%emt 0:00:17] Strongly threatening ...Rxe7.} 30. Rxf7 {[%emt 0:00:08]} Kxf7 {[%emt 0:00:02][%mdl 4096] Endgame KRB-KRN} 31. f4 {[%emt 0:00:08]} Ng6 {[%emt 0:00:07][%csl LRf4,LRh4]} 32. Bg3 {[%emt 0:00:06]} Re8 {[%emt 0:00:02]} 33. Rxe8 {[%emt 0:00:29]} Kxe8 {[%emt 0:00:01] KB-KN} 34. Kf2 {[%emt 0:00:06]} Ne7 {[%emt 0:00:03]} (34... b5 $19 {is more deadly.} 35. Ke2 bxa4) 35. Ke2 $17 {[%emt 0:00:14]} Kf7 {[%emt 0:00:10]} 36. Kd3 {[%emt 0:00:15]} Ke6 {[%emt 0:00:15]} 37. Bh4 {[%emt 0:00:25]} (37. Bf2 $142) 37... Nd5 {[%emt 0:00:52]} 38. g3 {[%emt 0:00:27] [#]} Nf6 $1 {[%emt 0:00:15]} 39. h3 {[%emt 0:00:31]} Nd7 {[%emt 0:00:13]} 40. Kc4 {[%emt 0:00:29]} Nc5 {[%emt 0:00:04]} 41. g4 {[%emt 0:00:09]} (41. Kb5 {was the only defense.}) 41... Nxa4 $19 {[%emt 0:00:04]} 42. g5 $2 {[%emt 0:00:12]} (42. f5+ Kd7 43. Bf2) 42... hxg5 {[%emt 0:00:13] Black is clearly winning.} 43. fxg5 {[%emt 0:00:06]} g6 {[%emt 0:00:04]} 44. Bf2 {[%emt 0:00:06]} Nc5 {[%emt 0:00:14] [#] Hoping for ...c6.} 45. h4 {[%emt 0:00:09]} c6 {[%emt 0:00:22] And now ...d5+ would win.} 46. Kd4 {[%emt 0:00:27]} d5 {[%emt 0:00:18] Threatens to win with ...a4.} 47. Ke3 {[%emt 0:00:07]} Ne4 {[%emt 0:00:04]} 48. Kd4 {Weighted Error Value: White=0.62/Black=0.33} 0-1

[Event "Portuguese Rapid-ch 2022"]
[Site "Viseu"]
[Date "2022.06.10"]
[Round "2.1"]
[White "Monteiro, Paulo Alexandre G"]
[Black "Ferreira, Jorge Viterbo"]
[Result "0-1"]
[ECO "D35"]
[WhiteElo "1983"]
[BlackElo "2512"]
[Annotator "TA"]
[PlyCount "58"]
[EventDate "2022.06.09"]
[EventType "rapid"]
[EventCountry "POR"]
[SourceTitle "playchess.com"]
[Source "ChessBase"]
[SourceQuality "1"]
[TimeControl "600+5"]

{[%evp 18,58,13,0,14,0,15,11,20,23,19,0,2,-10,12,-3,-4,-20,0,-16,0,-9,-7,-11,0,0,13,18,17,-26,-14,-70,-18,-60,-53,-132,-103,-281,-264,-261,-59,-326,-63]} 1. d4 d5 2. c4 e6 3. Nc3 Nf6 4. cxd5 exd5 5. Bg5 Be7 6. e3 h6 7. Bh4 c6 8. Bd3 O-O 9. Nge2 Nbd7 10. O-O Re8 $1 {10...Re8 scores better than 10...Ne4. D35: Queen's Gambit Declined: Exchange Variation.} 11. a4 {[%cal Ba2a4,Ba4a5][%mdl 32]} Nh5 12. Bxe7 Qxe7 {The position is equal.} 13. a5 {[#]} Ndf6 $146 ({Predecessor:} 13... a6 14. Ra3 Nf8 15. Na4 Rb8 16. Qd2 Qg5 17. f3 g6 18. Bb1 Ng7 19. Nf4 Bf5 {½-½ (29) Caruana,F (2786)-Firouzja,A (2804) Bucharest 2022}) 14. Ra3 g6 15. Na4 Ng7 (15... Qc7 {seems wilder.} 16. Qd2 Ng4 17. Ng3 Nxg3 18. hxg3 h5) 16. Bb1 Bf5 17. Ba2 Rad8 18. Ng3 Bc8 19. Nc5 h5 {[%cal Bh6h5,Bh5h4][%mdl 32]} 20. h3 h4 21. Ne2 g5 22. Re1 g4 23. hxg4 (23. Nf4 $5 {[%cal Ra5a6]}) 23... Bxg4 24. f3 (24. Nd3 $11) 24... Bc8 (24... Bf5 $15) 25. Nf4 Nfh5 $36 {[%mdl 2048] Black is more active.} 26. Nxh5 (26. Ncd3 $1 $15) 26... Nxh5 $17 27. e4 $2 (27. Qc2 $17 {was worth a try.}) 27... Qg5 $19 28. Qc2 {[#]} Nf4 $2 ({Better is} 28... Rd6 $1 $19 {[%cal Rd6g6] Strongly threatening ...Rg6.} 29. Rae3 h3) 29. Rd1 $2 {[%mdl 8192]} (29. Nd3 $1 $15) 29... Qg3 $2 {Weighted Error Value: White=0.52/Black=0.25 (precise)} ({Black should play} 29... h3 $19 30. g4 b6 31. axb6 axb6) 0-1